Workbook

Sheet Cost of Service
A1: COST OF SERVICE
A2: data source: | C2: IPM | D2: IPM | E2: IPM | F2: IPM | G2: IPM | H2: IPM | I2: IPM | J2: IPM | K2: calc | L2: IPM | M2: EIA | N2: calc | O2: calc | P2: EIA | Q2: EIA | R2: EIA | S2: calc | T2: EIA | U2: calc | V2: EIA | W2: EIA | X2: calc | Y2: EIA | Z2: calc
A3: EIA Region | B3: IPM Region | C3: Fuel Cost (Millions$) | D3: VOM Cost (Millions$) | E3: FOM Cost (Millions$) | F3: Capital Cost (Millions$) | G3: CCS Cost (Millions$) | H3: Wholesale Costs - interregional transactions (Millions$) | I3: REC transaction Cost (Millions$) | J3: Allocated Allowance Costs (Millions$) | K3: Total Costs for Generation of Power (Millions$) | L3: Net Energy For Load (GWh) | M3: Distribution Loss Factor | N3: Sales (GWh) | O3: Average Cost of Power Sales (mills/kWh) | P3: Utility Depreciation Costs (mills/kWh) | Q3: Return (mills/kWh) | R3: Final NUG Cost (mills/kWh) | S3: Generation Cost Before Taxes (mills/kWh) | T3: Assumed Tax Rates for Cost-of Service | U3: Generation Cost After Taxes (mills/kWh) | V3: Transmission Cost (mills/kWh) | W3: Distribution Cost (mills/kWh) | X3: Retail Rate (Generation + Transmission + Distribution) (mills/kWh) | Y3: Deregulated Share (%) | Z3: Final Average Price Weighted for Deregulated Share (mills/kWh)
A4: Region A | B4: Region 1 | C4: 1,400 | D4: 255 | E4: 457 | F4: 203 | G4: 0 | H4: -361 | I4: -8 | J4: 0 | K4: =C4+D4+E4+F4+H4+I4+G4+J4 -> 1,946 | L4: 48,050 | M4: 6.7% | N4: =L4*(1-M4) -> 44,831 | O4: =IF(N4=0, 0, K4/N4*1000) -> 43.4 | P4: 4 | Q4: 7 | R4: 37 | S4: =O4+P4+Q4+R4 -> 91 | T4: 0.07 | U4: =S4*(1+T4) -> 97.8 | V4: 9 | W4: 18 | X4: =MAX(U4,0)+V4+W4 -> 125 | Y4: 63% | Z4: =(1-Y4)*X4 -> 46.2
A5: Region B | B5: Region 2 | C5: 1,610 | D5: 211 | E5: 1,092 | F5: 297 | G5: 0 | H5: 644 | I5: -51 | J5: 0 | K5: =C5+D5+E5+F5+H5+I5+G5+J5 -> 3,803 | L5: 95,980 | M5: 5.9% | N5: =L5*(1-M5) -> 90,317 | O5: =IF(N5=0, 0, K5/N5*1000) -> 42.1 | P5: 7 | Q5: 9 | R5: 0.15 | S5: =O5+P5+Q5+R5 -> 58 | T5: 0.098 | U5: =S5*(1+T5) -> 64.0 | V5: 6 | W5: 20 | X5: =MAX(U5,0)+V5+W5 -> 90 | Y5: 0% | Z5: =(1-Y5)*X5 -> 90.0
A6: Region A | B6: Region 3 | C6: 4,686 | D6: 848 | E6: 2,595 | F6: 296 | G6: 0 | H6: -109 | I6: 77 | J6: 0 | K6: 8,393 | L6: 203,600 | M6: 6.7% | N6: =L6*(1-M6) -> 189,959 | O6: 44.2 | P6: 4 | Q6: 7 | R6: 37 | S6: =O6+P6+Q6+R6 -> 92 | T6: 0.07 | U6: 98.6 | V6: 9 | W6: 18 | X6: 126 | Y6: 63% | Z6: 46.5

Sheet Restructured
A1: RESTRUCTURED
A2: data source: | C2: IPM | D2: IPM | E2: IPM input | F2: IPM | G2: EIA | H2: calc | I2: IPM input | J2: IPM | K2: calc | L2: EIA | M2: calc | N2: EIA | O2: EIA | P2: calc | Q2: EIA | R2: calc
A3: EIA Region | B3: IPM Region | C3: Energy Price (mills/kWh) | D3: Capacity Price ($/kW) | E3: Reserve Margin (%) | F3: Load Factor | G3: Distribution Loss Factor | H3: Marginal Energy Cost and Capacity Cost (mills/kWh) | I3: RPS Policy - Renewables Penetration as a Percentage of Sales (%) | J3: RPS Policy - REC Price (mills/kWh) | K3: RPS REC Cost (mills/kWh) | L3: State/Local Taxes Rate (%) | M3: Competitive Generation Cost (mills/kWh) | N3: Transmission Cost (mills/kWh) | O3: Distribution Cost (mills/kWh) | P3: Final Average Price after T&D Addition (mills/kWh) | Q3: Deregulated Share (%) | R3: Final Average Price Weighted for Deregulated Share (mills/kWh)
A4: Region A | B4: Region 1 | C4: 38 | D4: 21 | E4: 15.4% | F4: 0.65 | G4: 0.067 | H4: =(C4+(D4*(1+E4)/(8.76*F4)))/(1-G4) -> 45.3 | I4: 5.2% | J4: 49.5 | K4: =I4*J4 -> 2.6 | L4: 2.80% | M4: =(H4+K4)*(1+L4) -> 49.2 | N4: 9.1 | O4: 17.9 | P4: =M4+N4+O4 -> 76.2 | Q4: 63% | R4: =Q4*P4 -> 48.0
A5: Region B | B5: Region 2 | C5: 40 | D5: 17 | E5: 15.4% | F5: 0.62 | G5: 0.059 | H5: =(C5+(D5*(1+E5)/(8.76*F5)))/(1-G5) -> 46.3 | I5: 3.5% | J5: 117.5 | K5: =I5*J5 -> 4.1 | L5: 1.44% | M5: =(H5+K5)*(1+L5) -> 51.2 | N5: 6.0 | O5: 19.9 | P5: =M5+N5+O5 -> 77.1 | Q5: 0% | R5: =Q5*P5 -> 0.0
A6: Region A | B6: Region 3 | C6: 39 | D6: 20 | E6: 15.4% | F6: 0.65 | G6: 0.067 | H6: =(C6+(D6*(1+E6)/(8.76*F6)))/(1-G6) -> 46.1 | I6: 5.2% | J6: 49.5 | K6: 2.6 | L6: 2.80% | M6: =(H6+K6)*(1+L6) -> 50.1 | N6: 9.1 | O6: 17.9 | P6: 77.1 | Q6: 63% | R6: 48.5

Sheet State Estimate
A1: ESTIMATES BY MODEL REGION
A2: data source: | C2: RPM | D2: RPM | E2: RPM | F2: IPM | G2: IPM
A3: EIA Region | B3: IPM Region | C3: Cost of Service (mills/kWh) | D3: Restructured (mills/kWh) | E3: Average Electricity Price (mills/kWh) | F3: Generation Total (GWh) | G3: Generation Share
A4: Region A | B4: Region 1 | C4: ='Cost of Service'!Z4 -> 46.2 | D4: =Restructured!R4 -> 48.0 | E4: =C4+D4 -> 94.2 | F4: 9842 | G4: =F4/SUM($F$4:$F$6) -> 12.4%
A5: Region B | B5: Region 2 | C5: ='Cost of Service'!Z5 -> 90.0 | D5: =Restructured!R5 -> 0.0 | E5: =C5+D5 -> 90.0 | F5: 64063 | G5: =F5/SUM($F$4:$F$6) -> 80.8%
A6: Region A | B6: Region 3 | C6: ='Cost of Service'!Z6 -> 46.5 | D6: =Restructured!R6 -> 48.5 | E6: 95.0 | F6: 5429 | G6: =F6/SUM($F$4:$F$6) -> 6.8%
A8: STATE-LEVEL ESTIMATE (mills/kWh)
A9: State X | B9: =E4*G4+E5*G5+E6*G6 -> 90.8

Sheet maps
